fUST/lending_fUST_20241213
["ID","MTS","AMOUNT","RATE_DAILY","PERIOD"]
[345169300,1734073888451,-761.46,0.00029041,7]
[345169302,1734073888463,-2849.29,0.00029041,7]
[345169304,1734073888472,-500.0,0.00029041,7]
[345169306,1734073888482,-609.24204505,0.00029041,7]
[345169308,1734073888492,-500.0,0.00029041,7]
[345169310,1734073888502,-1360.35,0.00029041,7]
[345169312,1734073888511,-830.13,0.00029041,7]
[345169314,1734073888520,-500.0,0.00029041,7]
[345169316,1734073888529,-552.29,0.00029041,7]
[345169318,1734073888539,-1830.05,0.00029041,7]
[345169320,1734073888548,-500.0,0.00029041,7]
[345169322,1734073888557,-500.0,0.00029041,7]
[345169324,1734073888567,-2352.18,0.00029041,7]
[345169326,1734073888576,-665.66,0.00029041,2]
[345169328,1734073888585,-10350.06,0.00029041,7]
[345169330,1734073888595,-500.0,0.00029041,7]
[345169332,1734073888604,-1088.5,0.00029041,7]
[345169334,1734073888614,-884.8,0.00029041,7]
[345169336,1734073888624,-1721.54,0.00029041,7]
[345169338,1734073888634,-2055.1,0.00029041,7]
[345169340,1734073888644,-524.23,0.00029041,7]
[345169342,1734073888654,-500.0,0.00029041,7]
[345169344,1734073888663,-500.0,0.00029041,7]
[345169346,1734073888672,-500.0,0.00029041,7]
[345169348,1734073888683,-2000.0,0.00029041,7]
[345169350,1734073888692,-1393.08,0.00029041,7]
[345169352,1734073888702,-759.46,0.00029041,7]
[345169355,1734073888712,-1231.64,0.00029041,7]
[345169357,1734073888721,-1043.14,0.00029041,7]
[345169359,1734073888731,-500.0,0.00029041,7]
[345169361,1734073888740,-500.0,0.00029041,7]
[345169363,1734073888750,-500.0,0.00029041,7]
[345169365,1734073888760,-500.0,0.00029041,7]
[345169367,1734073888769,-757.36,0.00029041,7]
[345169369,1734073888779,-597.21,0.00029041,7]
[345169371,1734073888788,-855.14,0.00029041,7]
[345169373,1734073888798,-774.23,0.00029041,7]
[345169375,1734073888810,-500.0,0.00029041,7]
[345169377,1734073888821,-500.0,0.00029041,7]
[345169379,1734073888831,-544.56,0.00029041,7]
[345169381,1734073888841,-500.0,0.00029041,7]
[345169383,1734073888850,-500.0,0.00029041,7]
[345169385,1734073888860,-500.0,0.00029041,7]
[345169387,1734073888869,-500.0,0.00029041,7]
[345169389,1734073888879,-14673.87,0.00029041,7]
[345169391,1734073888890,-874.46,0.00029041,7]
[345169393,1734073888900,-571.74,0.00029041,7]
[345169395,1734073888909,-500.0,0.00029041,7]
[345169397,1734073888919,-347.05844928,0.00029041,7]
[345169399,1734073888929,-500.0,0.00029041,7]
[345169401,1734073888939,-1325.51,0.00029041,7]
[345169403,1734073888950,-500.0,0.00029041,7]
[345169405,1734073888961,-500.0,0.00029041,7]
[345169407,1734073888970,-617.0,0.00029041,7]
[345169409,1734073888980,-500.0,0.00029041,7]
[345169411,1734073888989,-500.0,0.00029041,7]
[345169413,1734073888998,-500.0,0.00029041,7]
[345169415,1734073889008,-500.0,0.00029041,7]
[345169417,1734073889018,-500.0,0.00029041,7]
[345169419,1734073889027,-1057.12,0.00029041,7]
[345169421,1734073889037,-521.72289582,0.00029041,7]
[345169423,1734073889046,-2374.65,0.00029041,7]
[345169425,1734073889056,-500.0,0.00029041,7]
[345169427,1734073889065,-609.04,0.00029041,7]
[345169429,1734073889080,-500.0,0.00029041,7]
[345169431,1734073889090,-650.06,0.00029041,7]
[345169433,1734073889099,-1403.98,0.00029041,7]
[345169435,1734073889109,-500.0,0.00029041,7]
[345169437,1734073889118,-585.25,0.00029041,7]
[345169440,1734073889128,-1011.92,0.00029041,7]
[345169442,1734073889139,-649.55,0.00029041,7]
[345169443,1734073889147,-479.37542223,0.00029041,2]
[345169445,1734073889157,-500.0,0.00029041,7]
[345169448,1734073889167,-500.0,0.00029041,7]
[345169450,1734073889176,-500.0,0.00029041,2]
[345169452,1734073889185,-750.37,0.00029041,7]
[345169454,1734073889195,-1649.58,0.00029041,7]
[345169456,1734073889204,-500.0,0.00029041,7]
[345169458,1734073889213,-1113.45,0.00029041,7]
[345169460,1734073889223,-2099.54,0.00029041,7]
[345169462,1734073889232,-500.0,0.00029041,7]
[345169464,1734073889242,-1520.43,0.00029041,7]
[345169466,1734073889251,-802.05,0.00029041,7]
[345169468,1734073889260,-18649.54,0.00029041,7]
[345169470,1734073889269,-375.20513293,0.00029041,7]
[345169472,1734073889280,-1754.12,0.00029041,7]
[345169474,1734073889290,-500.0,0.00029041,7]
[345169476,1734073889298,-500.0,0.00029041,7]
[345169478,1734073889308,-569.82,0.00029041,7]
[345169480,1734073889317,-2347.12,0.00029041,7]
[345169482,1734073889327,-657.49,0.00029041,7]
[345169484,1734073889337,-500.0,0.00029041,7]
[345169486,1734073889348,-500.0,0.00029041,7]
[345169488,1734073889357,-500.0,0.00029041,7]
[345169490,1734073889367,-1837.67,0.00029041,7]
[345169492,1734073889376,-500.0,0.00029041,7]
[345169494,1734073889387,-500.0,0.00029041,7]
[345169495,1734073889400,-1076.97,0.00029041,7]
[345169497,1734073889410,-1669.83,0.00029041,7]
[345169499,1734073889420,-500.0,0.00029041,7]
[345169501,1734073889430,-500.0,0.00029041,7]
[345169503,1734073889439,-805.2,0.00029041,7]
[345169505,1734073889449,-500.0,0.00029041,7]
[345169507,1734073889463,-1014.65,0.00029041,7]
[345169510,1734073889473,-5241.44,0.00029041,7]
[345169512,1734073889483,-637.87,0.00029041,7]
[345169514,1734073889492,-500.0,0.00029041,7]
[345169516,1734073889503,-7567.01,0.00029041,7]
[345169518,1734073889513,-3845.18,0.00029041,7]
[345169520,1734073889522,-613.66,0.00029041,7]
[345169522,1734073889532,-556.39,0.00029041,7]
[345169524,1734073889542,-500.0,0.00029041,7]
[345169526,1734073889552,-500.0,0.00029041,7]
[345169528,1734073889561,-500.0,0.00029041,7]
[345169530,1734073889571,-3110.15,0.00029041,7]
[345169532,1734073889581,-500.0,0.00029041,7]
[345169534,1734073889590,-500.0,0.00029041,7]
[345169536,1734073889601,-1541.34,0.00029041,7]
[345169538,1734073889610,-500.0,0.00029041,7]
[345169540,1734073889621,-513.11,0.00029041,7]
[345169542,1734073889631,-1760.13,0.00029041,7]
[345169544,1734073889642,-500.0,0.00029041,7]
[345169546,1734073889652,-2152.36,0.00029041,7]
[345169548,1734073889661,-844.94,0.00029041,7]
[345169550,1734073889671,-506.96880143,0.00029041,7]
[345169552,1734073889680,-500.0,0.00029041,7]
[345169554,1734073889690,-500.0,0.00029041,7]
[345169556,1734073889699,-500.0,0.00029041,7]
[345169558,1734073889710,-3513.32,0.00029041,7]
[345169560,1734073889720,-500.0,0.00029041,7]
[345169562,1734073889730,-794.79,0.00029041,7]
[345169565,1734073889739,-1214.56,0.00029041,7]
[345169566,1734073889749,-500.0,0.00029041,7]
[345169568,1734073889759,-565.88,0.00029041,7]
[345169571,1734073889769,-777.95,0.00029041,7]
[345169573,1734073889779,-823.48,0.00029041,7]
[345169575,1734073889788,-1333.0,0.00029041,120]
[345169577,1734073889798,-1000.0,0.0002905,2]
[345169579,1734073889808,-150.0,0.00029073,5]
[345169581,1734073889818,-143563.9753634,0.000291,2]
[345169583,1734073889827,-6974.0,0.000291,2]
[345169585,1734073889836,-208.0,0.0002915,26]
[345169587,1734073889846,-2322.82,0.0002917,5]
[345169589,1734073889856,-201.33,0.00029185,120]
[345169591,1734073889864,-1538.34390567,0.00029222,5]
[345169593,1734073889874,-1500.0,0.00029222,5]
[345169595,1734073889883,-150.5,0.00029235,120]
[345169597,1734073889896,-150.5,0.00029245,120]
[345169612,1734073890022,-302.90913937,0.0002929,2]
[345169614,1734073890033,-302.9394212,0.0002929,2]
[345169616,1734073890044,-301.0,0.000293,14]
[345169618,1734073890054,-717.54,0.00029315,7]
[345169620,1734073890063,-237.26904786,0.00029315,7]
[345169622,1734073890072,-500.0,0.00029315,7]
[345169624,1734073890081,-526.38,0.00029315,7]
[345169626,1734073890090,-500.0,0.00029315,7]
[345169628,1734073890099,-1060.98,0.00029315,7]
[345169630,1734073890109,-500.0,0.00029315,7]
[345169632,1734073890118,-500.0,0.00029315,7]
[345169634,1734073890127,-504.17,0.00029315,7]
[345169636,1734073890136,-506.77,0.00029315,7]
[345169638,1734073890146,-500.0,0.00029315,7]
[345169640,1734073890156,-500.0,0.00029315,7]
[345169642,1734073890166,-500.0,0.00029315,7]
[345169644,1734073890175,-500.0,0.00029315,7]
[345169646,1734073890185,-710.23,0.00029315,7]
[345169648,1734073890194,-500.0,0.00029315,7]
[345169650,1734073890203,-500.0,0.00029315,7]
[345169652,1734073890212,-712.31,0.00029315,7]
[345169654,1734073890222,-540.72,0.00029315,7]
[345169656,1734073890231,-779.87,0.00029315,7]
[345169658,1734073890241,-500.0,0.00029315,7]
[345169660,1734073890250,-500.0,0.00029315,7]
[345169662,1734073890259,-500.0,0.00029315,7]
[345169664,1734073890269,-500.0,0.00029315,7]
[345169666,1734073890278,-550.49,0.00029315,7]
[345169668,1734073890287,-875.69,0.00029315,7]
[345169670,1734073890297,-500.0,0.00029315,7]
[345169672,1734073890306,-500.0,0.00029315,7]
[345169674,1734073890315,-718.22,0.00029315,7]
[345169676,1734073890325,-1639.41,0.00029315,7]
[345169678,1734073890335,-500.0,0.00029315,7]
[345169680,1734073890344,-500.0,0.00029315,7]
[345169682,1734073890353,-1045.63,0.00029315,7]
[345169684,1734073890363,-926.35,0.00029315,7]
[345169686,1734073890373,-500.0,0.00029315,7]
[345169688,1734073890382,-500.0,0.00029315,7]
[345169690,1734073890394,-1759.92,0.00029315,7]
[345169692,1734073890404,-500.0,0.00029315,7]
[345169694,1734073890416,-500.0,0.00029315,7]
[345169696,1734073890425,-541.72,0.00029315,7]
[345169698,1734073890435,-500.0,0.00029315,7]
[345169700,1734073890445,-500.0,0.00029315,7]
[345169702,1734073890458,-512.94,0.00029315,7]
[345169705,1734073890469,-609.25,0.00029315,7]
[345169707,1734073890479,-866.24,0.00029315,7]
[345169709,1734073890488,-583.41,0.00029315,7]
[345169711,1734073890497,-598.9,0.00029315,7]
[345169712,1734073890507,-1184.65,0.00029315,7]
[345169715,1734073890516,-534.17,0.00029315,7]
[345169717,1734073890526,-967.68,0.00029315,7]
[345169718,1734073890535,-500.0,0.00029315,7]
[345169720,1734073890545,-500.0,0.00029315,7]
[345169722,1734073890555,-238.27803742,0.00029315,7]
[345169725,1734073890564,-500.0,0.00029315,7]
[345169727,1734073890574,-1372.64,0.00029315,7]
[345169728,1734073890583,-500.0,0.00029315,7]
[345169730,1734073890593,-500.0,0.00029315,7]
[345169732,1734073890602,-1188.86,0.00029315,7]
[345169735,1734073890612,-500.0,0.00029315,7]
[345169736,1734073890621,-500.0,0.00029315,7]
[345169738,1734073890631,-983.86,0.00029315,7]
[345169741,1734073890642,-509.78869069,0.00029315,7]
[345169743,1734073890652,-1029.45,0.00029315,7]
[345169745,1734073890661,-500.0,0.00029315,7]
[345169746,1734073890670,-500.0,0.00029315,7]
[345169749,1734073890680,-500.0,0.00029315,7]
[345169751,1734073890690,-500.0,0.00029315,7]
[345169753,1734073890699,-500.0,0.00029315,7]
[345169755,1734073890708,-625.88,0.00029315,7]
[345169757,1734073890717,-500.0,0.00029315,7]
[345169758,1734073890726,-500.0,0.00029315,7]
[345169761,1734073890736,-500.0,0.00029315,7]
[345169762,1734073890745,-500.0,0.00029315,7]
[345169764,1734073890754,-539.73,0.00029315,7]
[345169767,1734073890764,-500.0,0.00029315,7]
[345169769,1734073890773,-500.0,0.00029315,7]
[345169771,1734073890783,-500.0,0.00029315,7]
[345169773,1734073890792,-500.0,0.00029315,7]
[345169775,1734073890802,-1122.36,0.00029315,7]
[345169777,1734073890811,-500.0,0.00029315,7]
[345169779,1734073890820,-754.87,0.00029315,7]
[345169781,1734073890830,-354.43116736,0.00029315,7]
[345169783,1734073890839,-500.0,0.00029315,7]
[345169785,1734073890848,-987.16,0.00029315,7]
[345169787,1734073890858,-500.0,0.00029315,7]
[345169789,1734073890867,-500.0,0.00029315,7]
[345169791,1734073890876,-500.0,0.00029315,7]
[345169793,1734073890886,-507.0796595,0.00029315,7]
[345169794,1734073890896,-500.0,0.00029315,2]
[345169796,1734073890906,-500.0,0.00029315,7]
[345169798,1734073890915,-500.0,0.00029315,7]
[345169800,1734073890924,-764.89,0.00029315,7]
[345169802,1734073890934,-500.0,0.00029315,7]
[345169804,1734073890943,-500.0,0.00029315,7]
[345169806,1734073890952,-500.0,0.00029315,7]
[345169808,1734073890961,-748.21,0.00029315,7]
[345169810,1734073890970,-891.63,0.00029315,7]
[345169812,1734073890979,-500.0,0.00029315,7]
[345169814,1734073890988,-1012.58,0.00029315,7]
[345169816,1734073890998,-153.18893568,0.00029315,7]
[345169818,1734073891007,-500.0,0.00029315,7]
[345169820,1734073891016,-1562.4,0.00029315,7]
[345169822,1734073891026,-500.0,0.00029315,7]
[345169825,1734073891036,-500.0,0.00029315,7]
[345169827,1734073891046,-500.0,0.00029315,7]
[345169829,1734073891055,-500.0,0.00029315,7]
[345169830,1734073891064,-844.87,0.00029315,7]
[345169833,1734073891073,-500.0,0.00029315,7]
[345169835,1734073891083,-861.33,0.00029315,7]
[345169836,1734073891092,-1079.28,0.00029315,7]
[345169838,1734073891102,-500.0,0.00029315,7]
[345169840,1734073891111,-500.0,0.00029315,7]
[345169843,1734073891122,-500.0,0.00029315,7]
[345169845,1734073891130,-500.0,0.00029315,7]
[345169847,1734073891143,-642.13,0.00029315,7]
[345169849,1734073891152,-580.55,0.00029315,7]
[345169851,1734073891161,-1754.92,0.00029315,7]
[345169853,1734073891171,-500.0,0.00029315,7]
[345169855,1734073891181,-500.0,0.00029315,7]
[345169857,1734073891191,-500.0,0.00029315,7]
[345169859,1734073891201,-500.0,0.00029315,7]
[345169861,1734073891210,-575.38,0.00029315,7]
[345169863,1734073891219,-500.0,0.00029315,7]
[345169865,1734073891228,-1597.88,0.00029315,7]
[345169866,1734073891237,-545.17,0.00029315,7]
[345169869,1734073891246,-1408.4,0.00029315,7]
[345169870,1734073891256,-1493.83,0.00029315,7]
[345169872,1734073891266,-612.01,0.00029315,7]
[345169875,1734073891276,-710.98,0.00029315,7]
[345169877,1734073891285,-1455.91,0.00029315,7]
[345169879,1734073891295,-500.0,0.00029315,7]
[345169881,1734073891305,-500.0,0.00029315,7]
[345169883,1734073891314,-500.0,0.00029315,7]
[345169885,1734073891325,-500.0,0.00029315,7]
[345169887,1734073891335,-1031.95,0.00029315,7]
[345169889,1734073891344,-354.72979746,0.00029315,7]
[345169891,1734073891354,-500.0,0.00029315,7]
[345169893,1734073891363,-500.0,0.00029315,7]
[345169895,1734073891373,-500.0,0.00029315,7]
[345169897,1734073891386,-930.78,0.00029315,7]
[345169899,1734073891398,-500.0,0.00029315,7]
[345169900,1734073891407,-500.0,0.00029315,7]
[345169902,1734073891416,-500.0,0.00029315,7]
[345169904,1734073891425,-500.0,0.00029315,7]
[345169906,1734073891434,-750.66,0.00029315,7]
[345169908,1734073891444,-500.0,0.00029315,7]
[345169911,1734073891456,-742.52,0.00029315,7]
[345169913,1734073891466,-581.53,0.00029315,7]
[345169915,1734073891476,-500.0,0.00029315,7]
[345169917,1734073891485,-500.0,0.00029315,7]
[345169919,1734073891494,-500.0,0.00029315,7]
[345169921,1734073891504,-685.0,0.00029315,7]
[345169923,1734073891514,-561.92,0.00029315,7]
[345169925,1734073891523,-500.69,0.00029315,7]
[345169927,1734073891534,-611.51,0.00029315,7]
[345169929,1734073891543,-560.45,0.00029315,7]
[345169931,1734073891552,-500.0,0.00029315,7]
[345169933,1734073891562,-500.0,0.00029315,7]
[345169935,1734073891571,-500.0,0.00029315,7]
[345169937,1734073891580,-500.0,0.00029315,7]
[345169939,1734073891589,-500.0,0.00029315,7]
[345169941,1734073891599,-586.35,0.00029315,7]
[345169943,1734073891608,-671.76,0.00029315,7]
[345169945,1734073891617,-821.87,0.00029315,7]
[345169946,1734073891626,-763.18,0.00029315,7]
[345169949,1734073891636,-340.54868522,0.00029315,7]
[345169950,1734073891649,-500.0,0.00029315,7]
[345169953,1734073891659,-500.0,0.00029315,7]
[345169955,1734073891669,-500.0,0.00029315,7]
[345169956,1734073891680,-500.0,0.00029315,7]
[345169959,1734073891689,-500.0,0.00029315,7]
[345169961,1734073891699,-500.0,0.00029315,7]
[345169963,1734073891708,-1939.32,0.00029315,7]
[345169965,1734073891717,-500.0,0.00029315,7]
[345169967,1734073891728,-791.43,0.00029315,7]
[345169969,1734073891739,-854.56,0.00029315,7]
[345169971,1734073891749,-613.3,0.00029315,7]
[345169973,1734073891759,-500.0,0.00029315,7]
[345169975,1734073891768,-500.0,0.00029315,7]
[345169977,1734073891778,-500.0,0.00029315,7]
[345169979,1734073891787,-500.0,0.00029315,7]
[345169981,1734073891797,-781.05,0.00029315,7]
[345169983,1734073891806,-500.0,0.00029315,7]
[345169985,1734073891815,-500.0,0.00029315,7]
[345169987,1734073891825,-1549.05,0.00029315,7]
[345170001,1734073891947,-500.0,0.00029315,7]
[345170003,1734073891957,-500.0,0.00029315,7]
[345170005,1734073891967,-500.0,0.00029315,7]
[345170007,1734073891976,-1117.3,0.00029315,7]
[345170009,1734073891986,-500.0,0.00029315,7]
[345170012,1734073891995,-500.0,0.00029315,7]
[345170014,1734073892005,-1000.0,0.00029315,2]
[345170016,1734073892014,-500.0,0.00029315,7]
[345170018,1734073892023,-500.0,0.00029315,7]
[345170020,1734073892032,-500.0,0.00029315,7]
[345170022,1734073892042,-918.3,0.00029315,7]
[345170024,1734073892051,-1626.18,0.00029315,7]
[345170026,1734073892060,-500.0,0.00029315,7]
[345170027,1734073892070,-500.0,0.00029315,7]
[345170030,1734073892079,-500.0,0.00029315,7]
[345170032,1734073892089,-500.0,0.00029315,7]
[345170034,1734073892099,-500.0,0.00029315,7]
[345170036,1734073892108,-500.0,0.00029315,7]
[345170038,1734073892118,-500.0,0.00029315,7]
[345170040,1734073892127,-500.0,0.00029315,7]
[345170042,1734073892139,-661.48,0.00029315,7]
[345170044,1734073892148,-168.0,0.00029315,7]
[345170046,1734073892157,-2467.25,0.00029315,7]
[345170048,1734073892166,-854.23,0.00029315,7]
[345170050,1734073892176,-576.59,0.00029315,7]
[345170052,1734073892185,-596.77,0.00029315,7]
[345170054,1734073892194,-550.05474755,0.00029315,7]
[345170056,1734073892203,-421.10431815,0.00029315,7]
[345170058,1734073892212,-500.0,0.00029315,7]
[345170060,1734073892222,-500.0,0.00029315,7]
[345170062,1734073892231,-500.0,0.00029315,7]
[345170064,1734073892240,-504.74,0.00029315,7]
[345170066,1734073892249,-2075.55,0.00029315,7]
[345170068,1734073892258,-500.0,0.00029315,7]
[345170070,1734073892267,-2144.24,0.00029315,7]
[345170071,1734073892276,-500.0,0.00029315,7]
[345170074,1734073892286,-598.18,0.00029315,7]
[345170075,1734073892295,-504.29,0.00029315,7]
[345170076,1734073892304,-695.31,0.00029315,7]
[345170077,1734073892313,-500.0,0.00029315,7]
[345170078,1734073892322,-500.0,0.00029315,7]
[345170079,1734073892331,-500.0,0.00029315,7]
[345170080,1734073892340,-551.25,0.00029315,7]
[345170081,1734073892349,-1042.61,0.00029315,7]
[345170082,1734073892359,-500.0,0.00029315,7]
[345170083,1734073892368,-500.0,0.00029315,7]
[345170084,1734073892377,-500.0,0.00029315,7]
[345170085,1734073892390,-500.0,0.00029315,7]
[345170086,1734073892400,-500.0,0.00029315,7]
[345170087,1734073892409,-1132.49,0.00029315,7]
[345170089,1734073892418,-533.60389502,0.00029315,7]
[345170091,1734073892428,-500.0,0.00029315,7]
[345170093,1734073892437,-500.0,0.00029315,7]
[345170095,1734073892447,-848.29,0.00029315,7]
[345170097,1734073892459,-554.26,0.00029315,7]
[345170099,1734073892468,-500.0,0.00029315,7]
[345170101,1734073892477,-742.65,0.00029315,7]
[345170103,1734073892487,-500.0,0.00029315,7]
[345170105,1734073892496,-793.69,0.00029315,7]
[345170107,1734073892505,-500.0,0.00029315,7]
[345170109,1734073892514,-500.0,0.00029315,7]
[345170111,1734073892524,-500.0,0.00029315,7]
[345170113,1734073892533,-660.24,0.00029315,7]
[345170115,1734073892542,-959.74,0.00029315,7]
[345170117,1734073892551,-500.0,0.00029315,7]
[345170119,1734073892560,-628.73,0.00029315,7]
[345170121,1734073892570,-500.0,0.00029315,7]
[345170123,1734073892579,-500.0,0.00029315,7]
[345170125,1734073892589,-913.29,0.00029315,7]
[345170127,1734073892598,-769.48,0.00029315,7]
[345170129,1734073892607,-500.0,0.00029315,7]
[345170131,1734073892617,-687.94,0.00029315,7]
[345170133,1734073892626,-500.0,0.00029315,7]
[345170135,1734073892635,-1226.78,0.00029315,7]
[345170137,1734073892647,-1239.0,0.00029315,7]
[345170139,1734073892656,-500.0,0.00029315,7]
[345170141,1734073892665,-555.96,0.00029315,7]
[345170143,1734073892674,-509.76469591,0.00029315,7]
[345170145,1734073892684,-500.0,0.00029315,7]
[345170147,1734073892693,-934.39,0.00029315,7]
[345170149,1734073892702,-500.0,0.00029315,7]
[345170151,1734073892711,-757.27,0.00029315,7]
[345170153,1734073892720,-1702.35,0.00029315,7]
[345170155,1734073892730,-517.16161478,0.00029315,7]
[345170157,1734073892739,-500.0,0.00029315,7]
[345170159,1734073892748,-694.34,0.00029315,7]
[345170161,1734073892758,-737.45,0.00029315,7]
[345170163,1734073892767,-851.51,0.00029315,7]
[345170165,1734073892776,-2417.87,0.00029315,7]
[345170167,1734073892785,-991.68,0.00029315,7]
[345170169,1734073892794,-1353.92,0.00029315,7]
[345170171,1734073892803,-516.48,0.00029315,7]
[345170173,1734073892813,-2043.23,0.00029315,7]
[345170175,1734073892822,-500.0,0.00029315,7]
[345170177,1734073892831,-500.0,0.00029315,7]
[345170179,1734073892840,-500.0,0.00029315,7]
[345170181,1734073892850,-872.8,0.00029315,7]
[345170183,1734073892861,-994.67,0.00029315,7]
[345170185,1734073892870,-771.58,0.00029315,7]
[345170187,1734073892879,-1208.81,0.00029315,7]
[345170189,1734073892889,-999.45,0.00029315,7]
[345170190,1734073892898,-1400.1,0.00029315,7]
[345170192,1734073892908,-662.17,0.00029315,7]
[345170194,1734073892917,-1632.88,0.00029315,7]
[345170196,1734073892930,-264.04973248,0.00029315,7]
[345170198,1734073892940,-500.0,0.00029315,7]
[345170200,1734073892949,-500.0,0.00029315,7]
[345170202,1734073892958,-3598.79,0.00029315,7]
[345170204,1734073892970,-1161.27,0.00029315,7]
[345170207,1734073892980,-500.0,0.00029315,7]
[345170209,1734073892989,-500.0,0.00029315,7]
[345170211,1734073892999,-761.46,0.00029315,7]
[345170213,1734073893008,-2849.29,0.00029315,7]
[345170215,1734073893017,-500.0,0.00029315,7]
[345170217,1734073893027,-500.0,0.00029315,7]
[345170219,1734073893036,-1360.35,0.00029315,7]
[345170220,1734073893045,-830.13,0.00029315,7]
[345170222,1734073893054,-500.0,0.00029315,7]
[345170224,1734073893063,-552.29,0.00029315,7]
[345170226,1734073893072,-1830.05,0.00029315,7]
[345170228,1734073893081,-500.0,0.00029315,7]
[345170230,1734073893091,-500.0,0.00029315,7]
[345170232,1734073893100,-2352.18,0.00029315,7]
[345170234,1734073893109,-665.66,0.00029315,2]
[345170236,1734073893118,-10350.06,0.00029315,7]
[345170238,1734073893128,-500.0,0.00029315,7]
[345170240,1734073893138,-1088.5,0.00029315,7]
[345170242,1734073893152,-884.8,0.00029315,7]
[345170244,1734073893162,-1721.54,0.00029315,7]
[345170246,1734073893172,-2055.1,0.00029315,7]
[345170248,1734073893182,-524.23,0.00029315,7]
[345170250,1734073893191,-500.0,0.00029315,7]
[345170252,1734073893199,-500.0,0.00029315,7]
[345170254,1734073893209,-500.0,0.00029315,7]
[345170256,1734073893218,-2000.0,0.00029315,7]
[345170258,1734073893227,-1393.08,0.00029315,7]
[345170260,1734073893237,-759.46,0.00029315,7]
[345170262,1734073893246,-1231.64,0.00029315,7]
[345170264,1734073893255,-1043.14,0.00029315,7]
[345170266,1734073893265,-500.0,0.00029315,7]
[345170268,1734073893276,-500.0,0.00029315,7]
[345170270,1734073893286,-500.0,0.00029315,7]
[345170271,1734073893296,-500.0,0.00029315,7]
[345170273,1734073893306,-757.36,0.00029315,7]
[345170276,1734073893315,-597.21,0.00029315,7]
[345170278,1734073893325,-855.14,0.00029315,7]
[345170280,1734073893335,-774.23,0.00029315,7]
[345170282,1734073893344,-509.47256793,0.00029315,7]
[345170284,1734073893355,-500.0,0.00029315,7]
[345170286,1734073893365,-544.56,0.00029315,7]
[345170288,1734073893375,-500.0,0.00029315,7]
[345170290,1734073893384,-500.0,0.00029315,7]
[345170292,1734073893395,-500.0,0.00029315,7]
[345170293,1734073893404,-519.86223266,0.00029315,7]
[345170295,1734073893415,-14673.87,0.00029315,7]
[345170297,1734073893424,-874.46,0.00029315,7]
[345170299,1734073893434,-571.74,0.00029315,7]
[345170301,1734073893443,-500.0,0.00029315,7]
[345170303,1734073893454,-500.0,0.00029315,7]
[345170305,1734073893467,-1325.51,0.00029315,7]
[345170307,1734073893477,-500.0,0.00029315,7]
[345170309,1734073893487,-500.0,0.00029315,7]
[345170312,1734073893498,-617.0,0.00029315,7]
[345170313,1734073893508,-500.0,0.00029315,7]